fUSD/lending_fUSD_20250916
["ID","MTS","AMOUNT","RATE_DAILY","PERIOD"]
[385825106,1758057072870,-400.0,0.0003178,6]
[385825107,1758057072880,-400.0,0.0003178,6]
[385825108,1758057072890,-400.0,0.0003178,6]
[385825109,1758057072903,-400.0,0.0003178,6]
[385825110,1758057072913,-400.0,0.0003178,6]
[385825111,1758057072922,-400.0,0.0003178,6]
[385825112,1758057072932,-400.0,0.0003178,6]
[385825113,1758057072942,-605.63,0.0003178,6]
[385825114,1758057072952,-400.0,0.0003178,6]
[385825115,1758057072961,-400.0,0.0003178,6]
[385825116,1758057072971,-535.77,0.0003178,6]
[385825117,1758057072981,-400.0,0.0003178,6]
[385825118,1758057072990,-400.0,0.0003178,6]
[385825119,1758057072999,-400.0,0.0003178,6]
[385825120,1758057073009,-400.0,0.0003178,6]
[385825121,1758057073019,-400.0,0.0003178,6]
[385825122,1758057073029,-609.74,0.0003178,6]
[385825123,1758057073038,-400.0,0.0003178,6]
[385825124,1758057073048,-400.0,0.0003178,6]
[385825125,1758057073058,-400.0,0.0003178,6]
[385825126,1758057073068,-400.0,0.0003178,6]
[385825127,1758057073078,-470.05,0.0003178,6]
[385825128,1758057073087,-713.21,0.0003178,6]
[385825129,1758057073097,-400.0,0.0003178,6]
[385825130,1758057073107,-545.98,0.0003178,6]
[385825131,1758057073116,-400.0,0.0003178,6]
[385825132,1758057073126,-435.33,0.0003178,6]
[385825133,1758057073135,-1275.84,0.0003178,6]
[385825134,1758057073145,-400.0,0.0003178,6]
[385825135,1758057073154,-400.0,0.0003178,6]
[385825136,1758057073164,-400.0,0.0003178,6]
[385825137,1758057073174,-400.0,0.0003178,6]
[385825138,1758057073183,-400.0,0.0003178,6]
[385825139,1758057073193,-1307.51,0.0003178,6]
[385825140,1758057073203,-400.0,0.0003178,6]
[385825141,1758057073213,-400.0,0.0003178,6]
[385825142,1758057073223,-400.0,0.0003178,6]
[385825143,1758057073232,-585.24,0.0003178,6]
[385825144,1758057073242,-400.0,0.0003178,6]
[385825145,1758057073251,-400.0,0.0003178,6]
[385825146,1758057073261,-400.0,0.0003178,6]
[385825147,1758057073271,-2094.1,0.0003178,6]
[385825148,1758057073280,-400.0,0.0003178,6]
[385825149,1758057073289,-400.0,0.0003178,6]
[385825150,1758057073299,-432.42,0.0003178,6]
[385825151,1758057073308,-426.07,0.0003178,6]
[385825152,1758057073318,-807.22,0.0003178,6]
[385825153,1758057073328,-400.0,0.0003178,6]
[385825154,1758057073338,-450.81,0.0003178,6]
[385825155,1758057073347,-400.0,0.0003178,6]
[385825156,1758057073356,-1320.54,0.0003178,6]
[385825157,1758057073365,-400.0,0.0003178,6]
[385825158,1758057073374,-400.0,0.0003178,6]
[385825159,1758057073384,-632.25,0.0003178,6]
[385825160,1758057073393,-2034.04,0.0003178,6]
[385825161,1758057073403,-400.0,0.0003178,6]
[385825162,1758057073412,-400.0,0.0003178,6]
[385825163,1758057073421,-400.0,0.0003178,6]
[385825164,1758057073431,-691.17,0.0003178,6]
[385825165,1758057073440,-400.0,0.0003178,6]
[385825166,1758057073449,-712.91,0.0003178,6]
[385825167,1758057073459,-400.0,0.0003178,6]
[385825168,1758057073468,-400.0,0.0003178,6]
[385825169,1758057073477,-400.0,0.0003178,6]
[385825170,1758057073487,-400.0,0.0003178,6]
[385825171,1758057073497,-531.95,0.0003178,6]
[385825172,1758057073506,-400.0,0.0003178,6]
[385825173,1758057073515,-400.0,0.0003178,6]
[385825174,1758057073524,-400.0,0.0003178,6]
[385825175,1758057073534,-400.0,0.0003178,6]
[385825176,1758057073543,-400.0,0.0003178,6]
[385825177,1758057073553,-400.0,0.0003178,6]
[385825178,1758057073563,-682.52,0.0003178,6]
[385825179,1758057073572,-400.0,0.0003178,6]
[385825180,1758057073582,-668.63,0.0003178,6]
[385825181,1758057073591,-2182.91,0.0003178,6]
[385825182,1758057073600,-390.83,0.0003178,6]
[385825183,1758057073610,-400.0,0.0003178,6]
[385825184,1758057073619,-577.47,0.0003178,6]
[385825185,1758057073629,-462.44766417,0.0003178,6]
[385825186,1758057073638,-400.0,0.0003178,6]
[385825187,1758057073647,-400.0,0.0003178,6]
[385825188,1758057073656,-400.0,0.0003178,6]
[385825189,1758057073665,-400.0,0.0003178,6]
[385825190,1758057073674,-613.19,0.0003178,6]
[385825191,1758057073684,-409.76,0.0003178,6]
[385825192,1758057073694,-1251.89,0.0003178,6]
[385825193,1758057073703,-400.0,0.0003178,6]
[385825194,1758057073713,-400.0,0.0003178,6]
[385825195,1758057073722,-1025.88,0.0003178,6]
[385825196,1758057073733,-400.0,0.0003178,6]
[385825197,1758057073742,-400.0,0.0003178,6]
[385825198,1758057073752,-400.0,0.0003178,6]
[385825199,1758057073762,-924.97,0.0003178,6]
[385825200,1758057073771,-593.74,0.0003178,6]
[385825201,1758057073781,-605.66,0.0003178,6]
[385825202,1758057073790,-516.31,0.0003178,6]
[385825203,1758057073799,-400.0,0.0003178,6]
[385825204,1758057073809,-400.0,0.0003178,6]
[385825205,1758057073818,-400.0,0.0003178,6]
[385825206,1758057073828,-400.0,0.0003178,6]
[385825207,1758057073837,-400.0,0.0003178,6]
[385825208,1758057073847,-400.0,0.0003178,6]
[385825209,1758057073857,-400.0,0.0003178,6]
[385825210,1758057073867,-1014.87,0.0003178,6]
[385825211,1758057073877,-400.0,0.0003178,6]
[385825212,1758057073886,-524.6,0.0003178,6]
[385825213,1758057073897,-400.0,0.0003178,6]
[385825214,1758057073907,-493.11,0.0003178,6]
[385825215,1758057073917,-400.0,0.0003178,6]
[385825216,1758057073926,-412.98,0.0003178,6]
[385825217,1758057073936,-400.0,0.0003178,6]
[385825218,1758057073945,-588.1,0.0003178,6]
[385825219,1758057073955,-400.0,0.0003178,6]
[385825220,1758057073965,-400.0,0.0003178,6]
[385825221,1758057073974,-529.64,0.0003178,6]
[385825222,1758057073983,-574.6,0.0003178,6]
[385825223,1758057073993,-436.67,0.0003178,6]
[385825224,1758057074003,-400.0,0.0003178,6]
[385825225,1758057074014,-400.0,0.0003178,6]
[385825226,1758057074024,-983.68,0.0003178,6]
[385825227,1758057074033,-400.0,0.0003178,6]
[385825228,1758057074043,-410.54,0.0003178,6]
[385825229,1758057074052,-400.0,0.0003178,6]
[385825230,1758057074061,-400.0,0.0003178,6]
[385825231,1758057074071,-875.58,0.0003178,6]
[385825232,1758057074081,-457.79,0.0003178,6]
[385825233,1758057074090,-409.35,0.0003178,6]
[385825234,1758057074100,-400.0,0.0003178,6]
[385825235,1758057074109,-400.0,0.0003178,6]
[385825236,1758057074118,-625.93,0.0003178,6]
[385825237,1758057074127,-400.0,0.0003178,6]
[385825238,1758057074136,-791.37,0.0003178,6]
[385825239,1758057074146,-609.54,0.0003178,6]
[385825240,1758057074155,-510.33,0.0003178,6]
[385825241,1758057074164,-556.43,0.0003178,6]
[385825242,1758057074174,-745.45,0.0003178,6]
[385825243,1758057074183,-400.0,0.0003178,6]
[385825244,1758057074192,-400.0,0.0003178,6]
[385825245,1758057074202,-438.34,0.0003178,6]
[385825246,1758057074211,-1260.15,0.0003178,6]
[385825247,1758057074221,-636.26,0.0003178,6]
[385825248,1758057074231,-400.0,0.0003178,6]
[385825249,1758057074240,-400.0,0.0003178,6]
[385825250,1758057074250,-461.54,0.0003178,6]
[385825251,1758057074259,-176.96921276,0.0003178,6]
[385825252,1758057074269,-400.0,0.0003178,6]
[385825253,1758057074278,-479.5,0.0003178,6]
[385825254,1758057074287,-587.63,0.0003178,6]
[385825255,1758057074297,-1289.38,0.0003178,6]
[385825256,1758057074306,-400.0,0.0003178,6]
[385825257,1758057074315,-400.0,0.0003178,6]
[385825258,1758057074325,-506.39,0.0003178,6]
[385825259,1758057074334,-400.0,0.0003178,6]
[385825260,1758057074343,-462.29,0.0003178,6]
[385825261,1758057074352,-400.0,0.0003178,6]
[385825262,1758057074362,-400.0,0.0003178,6]
[385825263,1758057074371,-400.0,0.0003178,6]
[385825264,1758057074381,-400.0,0.0003178,6]
[385825265,1758057074390,-400.0,0.0003178,6]
[385825266,1758057074400,-690.9,0.0003178,6]
[385825267,1758057074410,-449.23,0.0003178,5]
[385825268,1758057074419,-1146.39,0.0003178,6]
[385825269,1758057074428,-400.0,0.0003178,6]
[385825270,1758057074438,-684.79,0.0003178,6]
[385825271,1758057074448,-400.0,0.0003178,6]
[385825272,1758057074457,-400.0,0.0003178,6]
[385825273,1758057074467,-400.0,0.0003178,6]
[385825274,1758057074477,-400.0,0.0003178,6]
[385825275,1758057074486,-843.08,0.0003178,6]
[385825276,1758057074495,-151.0,0.0003178,7]
[385825277,1758057074504,-400.0,0.0003178,6]
[385825278,1758057074514,-400.0,0.0003178,6]
[385825279,1758057074523,-400.0,0.0003178,6]
[385825280,1758057074533,-400.0,0.0003178,6]
[385825281,1758057074543,-400.0,0.0003178,6]
[385825282,1758057074552,-400.0,0.0003178,6]
[385825283,1758057074563,-400.0,0.0003178,6]
[385825284,1758057074573,-497.6,0.0003178,6]
[385825285,1758057074583,-400.0,0.0003178,6]
[385825286,1758057074593,-400.0,0.0003178,6]
[385825287,1758057074603,-400.0,0.0003178,6]
[385825288,1758057074612,-400.0,0.0003178,6]
[385825289,1758057074622,-400.0,0.0003178,6]
[385825290,1758057074632,-400.0,0.0003178,6]
[385825291,1758057074642,-400.0,0.0003178,6]
[385825292,1758057074651,-400.0,0.0003178,6]
[385825293,1758057074662,-400.0,0.0003178,6]
[385825294,1758057074671,-2611.36,0.0003178,6]
[385825295,1758057074682,-400.0,0.0003178,6]
[385825296,1758057074691,-400.0,0.0003178,6]
[385825297,1758057074701,-400.0,0.0003178,6]
[385825298,1758057074710,-400.0,0.0003178,6]
[385825299,1758057074720,-553.62,0.0003178,6]
[385825300,1758057074729,-467.85,0.0003178,6]
[385825301,1758057074739,-400.0,0.0003178,6]
[385825302,1758057074749,-836.09,0.0003178,6]
[385825303,1758057074758,-400.0,0.0003178,6]
[385825304,1758057074768,-400.0,0.0003178,6]
[385825305,1758057074778,-400.0,0.0003178,6]
[385825306,1758057074788,-1289.35,0.0003178,6]
[385825307,1758057074797,-400.0,0.0003178,6]
[385825308,1758057074807,-400.0,0.0003178,6]
[385825309,1758057074816,-430.5,0.0003178,6]
[385825310,1758057074826,-400.0,0.0003178,6]
[385825311,1758057074836,-400.0,0.0003178,6]
[385825312,1758057074846,-400.0,0.0003178,6]
[385825313,1758057074855,-479.52,0.0003178,6]
[385825314,1758057074865,-400.0,0.0003178,6]
[385825315,1758057074875,-400.0,0.0003178,6]
[385825316,1758057074885,-441.74,0.0003178,6]
[385825317,1758057074897,-400.0,0.0003178,6]
[385825318,1758057074908,-400.0,0.0003178,6]
[385825319,1758057074918,-507.91,0.0003178,6]
[385825320,1758057074927,-400.0,0.0003178,6]
[385825321,1758057074937,-547.58,0.0003178,6]
[385825322,1758057074948,-2216.47,0.0003178,6]
[385825323,1758057074957,-400.0,0.0003178,6]
[385825324,1758057074967,-400.0,0.0003178,6]
[385825325,1758057074979,-400.0,0.0003178,6]
[385825326,1758057074989,-400.0,0.0003178,6]
[385825327,1758057074999,-1395.64841539,0.00031844,2]
[385825328,1758057075009,-1300.0,0.00031851,7]
[385825329,1758057075019,-1100.0,0.00031862,7]
[385825330,1758057075029,-500.0,0.00031862,7]
[385825331,1758057075039,-7205.17345234,0.00031886,2]
[385825332,1758057075049,-600.0,0.00031898,7]
[385825333,1758057075058,-809.61514063,0.00031964,2]
[385825334,1758057075068,-500.0,0.00031969,7]
[385825335,1758057075078,-40110.78,0.00032,7]
[385825336,1758057075087,-548.0,0.00032,2]
[385825337,1758057075097,-500.0,0.00032001,7]
[385825338,1758057075106,-839.09243417,0.00032011,2]
[385825339,1758057075116,-266.918253,0.00032011,7]
[385825340,1758057075126,-600.0,0.00032043,7]
[385825341,1758057075135,-700.0,0.00032046,7]
[385825342,1758057075145,-300.0,0.00032053,10]
[385825343,1758057075154,-472.24,0.00032054,6]
[385825344,1758057075164,-400.0,0.00032054,6]
[385825345,1758057075173,-400.0,0.00032054,6]
[385825346,1758057075182,-400.0,0.00032054,6]
[385825347,1758057075192,-400.0,0.00032054,6]
[385825348,1758057075201,-400.0,0.00032054,6]
[385825349,1758057075211,-198.41220733,0.00032054,6]
[385825350,1758057075221,-400.0,0.00032054,6]
[385825351,1758057075231,-400.0,0.00032054,6]
[385825352,1758057075241,-400.0,0.00032054,6]
[385825353,1758057075251,-400.0,0.00032054,6]
[385825354,1758057075261,-400.0,0.00032054,6]
[385825355,1758057075271,-400.0,0.00032054,6]
[385825356,1758057075281,-400.0,0.00032054,6]
[385825357,1758057075291,-400.0,0.00032054,6]
[385825358,1758057075301,-400.0,0.00032054,6]
[385825359,1758057075311,-400.0,0.00032054,6]
[385825360,1758057075321,-400.0,0.00032054,6]
[385825361,1758057075331,-400.0,0.00032054,6]
[385825362,1758057075341,-400.0,0.00032054,6]
[385825363,1758057075351,-595.04,0.00032054,6]
[385825364,1758057075362,-400.0,0.00032054,6]
[385825365,1758057075372,-400.0,0.00032054,6]
[385825366,1758057075383,-817.46,0.00032054,6]
[385825367,1758057075393,-400.0,0.00032054,6]
[385825368,1758057075403,-400.0,0.00032054,6]
[385825369,1758057075417,-426.72,0.00032054,6]
[385825370,1758057075427,-400.0,0.00032054,6]
[385825371,1758057075437,-400.0,0.00032054,6]
[385825372,1758057075447,-400.0,0.00032054,6]
[385825373,1758057075457,-400.0,0.00032054,6]
[385825374,1758057075467,-400.0,0.00032054,6]
[385825375,1758057075477,-400.0,0.00032054,6]
[385825376,1758057075486,-400.0,0.00032054,6]
[385825377,1758057075496,-400.0,0.00032054,6]
[385825378,1758057075506,-400.0,0.00032054,6]
[385825379,1758057075516,-400.0,0.00032054,6]
[385825380,1758057075525,-400.0,0.00032054,6]
[385825381,1758057075536,-466.82,0.00032054,6]
[385825382,1758057075545,-400.0,0.00032054,6]
[385825383,1758057075555,-436.46,0.00032054,6]
[385825384,1758057075565,-400.0,0.00032054,6]
[385825385,1758057075575,-400.0,0.00032054,6]
[385825386,1758057075585,-201.05272014,0.00032054,6]
[385825387,1758057075603,-400.0,0.00032054,6]
[385825388,1758057075613,-400.0,0.00032054,6]
[385825389,1758057075623,-400.0,0.00032054,6]
[385825390,1758057075633,-188.42992997,0.00032054,6]
[385825391,1758057075642,-329.34219628,0.00032054,6]
[385825392,1758057075652,-395.78807451,0.00032054,6]
[385825393,1758057075662,-400.0,0.00032054,6]
[385825394,1758057075672,-400.0,0.00032054,6]
[385825395,1758057075683,-189.80516996,0.00032054,6]
[385825396,1758057075694,-400.0,0.00032054,6]
[385825397,1758057075704,-444.47,0.00032054,6]
[385825398,1758057075713,-400.0,0.00032054,6]
[385825399,1758057075723,-400.0,0.00032054,6]
[385825400,1758057075733,-400.0,0.00032054,6]
[385825401,1758057075742,-400.0,0.00032054,6]
[385825402,1758057075752,-400.0,0.00032054,6]
[385825403,1758057075762,-502.33370035,0.00032054,6]
[385825404,1758057075772,-400.0,0.00032054,6]
[385825405,1758057075782,-400.0,0.00032054,6]
[385825406,1758057075792,-350.0021793,0.00032054,6]
[385825407,1758057075801,-400.0,0.00032054,6]
[385825408,1758057075811,-400.0,0.00032054,6]
[385825409,1758057075821,-400.0,0.00032054,6]
[385825410,1758057075830,-400.0,0.00032054,6]
[385825411,1758057075840,-400.0,0.00032054,6]
[385825412,1758057075850,-400.0,0.00032054,6]
[385825413,1758057075860,-538.45,0.00032054,6]
[385825414,1758057075869,-400.0,0.00032054,6]
[385825415,1758057075879,-348.67518431,0.00032054,6]
[385825416,1758057075889,-400.0,0.00032054,6]
[385825417,1758057075903,-897.93,0.00032054,6]
[385825418,1758057075913,-400.39,0.00032054,6]
[385825419,1758057075922,-477.46,0.00032054,6]
[385825420,1758057075932,-400.0,0.00032054,6]
[385825421,1758057075942,-400.0,0.00032054,6]
[385825422,1758057075951,-265.45388095,0.00032054,6]
[385825423,1758057075962,-400.0,0.00032054,6]
[385825424,1758057075972,-190.03782933,0.00032054,6]
[385825425,1758057075982,-400.0,0.00032054,6]
[385825426,1758057075991,-400.0,0.00032054,6]
[385825427,1758057076001,-400.0,0.00032054,6]
[385825428,1758057076012,-400.0,0.00032054,6]
[385825429,1758057076022,-400.0,0.00032054,6]
[385825430,1758057076031,-400.0,0.00032054,6]
[385825431,1758057076041,-420.75,0.00032054,6]
[385825432,1758057076051,-471.26770591,0.00032054,6]
[385825433,1758057076061,-400.0,0.00032054,6]
[385825434,1758057076071,-400.0,0.00032054,6]
[385825435,1758057076081,-400.0,0.00032054,6]
[385825436,1758057076091,-2152.72,0.00032054,6]
[385825437,1758057076101,-446.8,0.00032054,6]
[385825438,1758057076111,-400.0,0.00032054,6]
[385825439,1758057076121,-400.0,0.00032054,6]
[385825440,1758057076131,-400.0,0.00032054,6]
[385825441,1758057076141,-400.0,0.00032054,6]
[385825442,1758057076151,-400.0,0.00032054,6]
[385825443,1758057076161,-304.53248763,0.00032054,6]
[385825444,1758057076170,-400.0,0.00032054,6]
[385825445,1758057076180,-400.0,0.00032054,6]
[385825446,1758057076190,-400.0,0.00032054,6]
[385825447,1758057076200,-400.0,0.00032054,6]
[385825448,1758057076209,-400.0,0.00032054,6]
[385825449,1758057076219,-400.0,0.00032054,6]
[385825450,1758057076230,-400.0,0.00032054,6]
[385825451,1758057076239,-400.0,0.00032054,6]
[385825452,1758057076249,-400.0,0.00032054,6]
[385825453,1758057076259,-400.0,0.00032054,6]
[385825454,1758057076269,-400.0,0.00032054,6]
[385825455,1758057076280,-400.0,0.00032054,6]
[385825456,1758057076289,-400.0,0.00032054,6]
[385825457,1758057076299,-400.0,0.00032054,6]
[385825458,1758057076308,-414.26,0.00032054,6]
[385825459,1758057076319,-400.0,0.00032054,6]
[385825460,1758057076329,-633.69,0.00032054,6]
[385825461,1758057076338,-400.0,0.00032054,6]
[385825462,1758057076348,-541.5497417,0.00032054,6]
[385825463,1758057076357,-400.0,0.00032054,6]
[385825464,1758057076368,-400.0,0.00032054,6]
[385825465,1758057076377,-400.0,0.00032054,6]
[385825466,1758057076387,-400.0,0.00032054,6]
[385825467,1758057076397,-400.0,0.00032054,6]
[385825468,1758057076407,-400.0,0.00032054,6]
[385825469,1758057076417,-400.0,0.00032054,6]
[385825470,1758057076427,-400.0,0.00032054,6]
[385825471,1758057076437,-400.0,0.00032054,6]
[385825472,1758057076447,-400.0,0.00032054,6]
[385825473,1758057076457,-488.35,0.00032054,6]
[385825474,1758057076466,-244.60816553,0.00032054,6]
[385825475,1758057076476,-400.0,0.00032054,6]
[385825476,1758057076486,-400.0,0.00032054,6]
[385825477,1758057076496,-400.0,0.00032054,6]
[385825478,1758057076506,-400.0,0.00032054,6]
[385825479,1758057076515,-400.0,0.00032054,6]
[385825480,1758057076525,-636.75,0.00032054,6]
[385825481,1758057076535,-400.0,0.00032054,6]
[385825482,1758057076545,-400.0,0.00032054,6]
[385825483,1758057076554,-400.0,0.00032054,6]
[385825484,1758057076564,-400.0,0.00032054,6]
[385825485,1758057076574,-400.0,0.00032054,6]
[385825486,1758057076583,-400.0,0.00032054,6]
[385825487,1758057076593,-400.0,0.00032054,6]
[385825488,1758057076603,-605.63,0.00032054,6]
[385825489,1758057076613,-400.0,0.00032054,6]
[385825490,1758057076623,-400.0,0.00032054,6]
[385825491,1758057076633,-535.77,0.00032054,6]
[385825492,1758057076642,-400.0,0.00032054,6]
[385825493,1758057076651,-400.0,0.00032054,6]
[385825494,1758057076662,-400.0,0.00032054,6]
[385825495,1758057076672,-210.36982045,0.00032054,6]
[385825496,1758057076681,-400.0,0.00032054,6]
[385825497,1758057076692,-609.74,0.00032054,6]
[385825498,1758057076702,-400.0,0.00032054,6]
[385825499,1758057076712,-547.21490039,0.00032054,6]
[385825500,1758057076722,-400.0,0.00032054,6]
[385825501,1758057076731,-400.0,0.00032054,6]
[385825502,1758057076741,-470.05,0.00032054,6]
[385825503,1758057076752,-713.21,0.00032054,6]
[385825504,1758057076762,-400.0,0.00032054,6]
[385825505,1758057076772,-545.98,0.00032054,6]
[385825506,1758057076782,-400.0,0.00032054,6]
[385825507,1758057076793,-435.33,0.00032054,6]
[385825508,1758057077014,-1275.84,0.00032054,6]
[385825509,1758057077062,-400.0,0.00032054,6]
[385825510,1758057077072,-400.0,0.00032054,6]
[385825511,1758057077082,-467.43546365,0.00032054,6]
[385825512,1758057077092,-400.0,0.00032054,6]
[385825513,1758057077102,-400.0,0.00032054,6]
[385825514,1758057077112,-1307.51,0.00032054,6]
[385825515,1758057077122,-400.0,0.00032054,6]
[385825516,1758057077132,-400.0,0.00032054,6]
[385825517,1758057077142,-400.0,0.00032054,6]
[385825518,1758057077151,-585.24,0.00032054,6]
[385825519,1758057077161,-400.0,0.00032054,6]
[385825520,1758057077171,-400.0,0.00032054,6]
[385825521,1758057077181,-474.16489992,0.00032054,6]
[385825522,1758057077190,-2094.1,0.00032054,6]
[385825523,1758057077200,-400.0,0.00032054,6]
[385825524,1758057077210,-400.0,0.00032054,6]
[385825525,1758057077219,-432.42,0.00032054,6]
[385825526,1758057077229,-426.07,0.00032054,6]
[385825527,1758057077239,-807.22,0.00032054,6]
[385825528,1758057077249,-400.0,0.00032054,6]
[385825529,1758057077259,-450.81,0.00032054,6]
[385825530,1758057077268,-400.0,0.00032054,6]
[385825531,1758057077278,-1320.54,0.00032054,6]
[385825532,1758057077287,-400.0,0.00032054,6]
[385825533,1758057077297,-400.0,0.00032054,6]
[385825534,1758057077307,-632.25,0.00032054,6]
[385825535,1758057077317,-2034.04,0.00032054,6]
[385825536,1758057077327,-400.0,0.00032054,6]
[385825537,1758057077337,-400.0,0.00032054,6]
[385825538,1758057077347,-400.0,0.00032054,6]
[385825539,1758057077357,-691.17,0.00032054,6]
[385825540,1758057077367,-400.0,0.00032054,6]
[385825541,1758057077376,-712.91,0.00032054,6]
[385825542,1758057077386,-400.0,0.00032054,6]
[385825543,1758057077396,-400.0,0.00032054,6]
[385825544,1758057077405,-400.0,0.00032054,6]
[385825545,1758057077415,-400.0,0.00032054,6]
[385825546,1758057077425,-531.95,0.00032054,6]
[385825547,1758057077435,-400.0,0.00032054,6]
[385825548,1758057077444,-400.0,0.00032054,6]
[385825549,1758057077454,-400.0,0.00032054,6]
[385825550,1758057077463,-400.0,0.00032054,6]
[385825551,1758057077473,-400.0,0.00032054,6]
[385825552,1758057077482,-400.0,0.00032054,6]
[385825553,1758057077492,-682.52,0.00032054,6]
[385825554,1758057077502,-400.0,0.00032054,6]
[385825555,1758057077511,-668.63,0.00032054,6]
[385825556,1758057077521,-2182.91,0.00032054,6]
[385825557,1758057077530,-400.0,0.00032054,6]
[385825558,1758057077540,-577.47,0.00032054,6]
[385825559,1758057077549,-400.0,0.00032054,6]
[385825560,1758057077559,-400.0,0.00032054,6]
[385825561,1758057077568,-400.0,0.00032054,6]
[385825562,1758057077578,-400.0,0.00032054,6]
[385825563,1758057077588,-613.19,0.00032054,6]
[385825564,1758057077597,-409.76,0.00032054,6]
[385825565,1758057077607,-1251.89,0.00032054,6]
[385825566,1758057077616,-400.0,0.00032054,6]
[385825567,1758057077626,-400.0,0.00032054,6]
[385825568,1758057077635,-1025.88,0.00032054,6]
[385825569,1758057077645,-400.0,0.00032054,6]
[385825570,1758057077654,-400.0,0.00032054,6]
[385825571,1758057077666,-400.0,0.00032054,6]
[385825572,1758057077676,-924.97,0.00032054,6]
[385825573,1758057077686,-593.74,0.00032054,6]
[385825574,1758057077696,-605.66,0.00032054,6]
[385825575,1758057077706,-516.31,0.00032054,6]
[385825576,1758057077715,-400.0,0.00032054,6]
[385825577,1758057077725,-400.0,0.00032054,6]
[385825578,1758057077734,-400.0,0.00032054,6]
[385825579,1758057077744,-400.0,0.00032054,6]
[385825580,1758057077753,-400.0,0.00032054,6]
[385825581,1758057077763,-400.0,0.00032054,6]
[385825582,1758057077773,-1014.87,0.00032054,6]
[385825583,1758057077782,-400.0,0.00032054,6]
[385825584,1758057077791,-524.6,0.00032054,6]
[385825585,1758057077801,-400.0,0.00032054,6]
[385825586,1758057077811,-493.11,0.00032054,6]
[385825587,1758057077821,-400.0,0.00032054,6]
[385825588,1758057077830,-412.98,0.00032054,6]
[385825589,1758057077840,-400.0,0.00032054,6]
[385825590,1758057077850,-588.1,0.00032054,6]
[385825591,1758057077860,-400.0,0.00032054,6]
[385825592,1758057077871,-400.0,0.00032054,6]
[385825593,1758057077881,-529.64,0.00032054,6]
[385825594,1758057077890,-574.6,0.00032054,6]
[385825595,1758057077905,-436.67,0.00032054,6]
[385825596,1758057077915,-400.0,0.00032054,6]
[385825597,1758057077925,-400.0,0.00032054,6]
[385825598,1758057077934,-983.68,0.00032054,6]
[385825599,1758057077946,-400.0,0.00032054,6]
[385825600,1758057077956,-410.54,0.00032054,6]
[385825601,1758057077966,-400.0,0.00032054,6]
[385825602,1758057077976,-400.0,0.00032054,6]
[385825603,1758057077986,-875.58,0.00032054,6]
[385825604,1758057077996,-457.79,0.00032054,6]
[385825605,1758057078005,-409.35,0.00032054,6]